[Event "Early-Titled-Tuesday-Blitz-January-16-2024"]
[Site "Chess.com"]
[Date "2024.01.16"]
[Round "4"]
[White "ritanovikova"]
[Black "Kopytkin"]
[Result "0-1"]
[WhiteElo "2169"]
[BlackElo "2391"]
[TimeControl "180+1"]
[EndTime "8:40:35 PST"]
[Termination "Kopytkin won by resignation"]

1. e4 {[%clk 0:02:56.9]} 1... Nf6 {[%clk 0:02:58.6]} 2. e5 {[%clk 0:02:56.8]}
2... Nd5 {[%clk 0:02:58.3]} 3. Nf3 {[%clk 0:02:56.8]} 3... d6 {[%clk 0:02:58.4]}
4. c4 {[%clk 0:02:55.8]} 4... Nb6 {[%clk 0:02:58.2]} 5. exd6 {[%clk 0:02:55.8]}
5... cxd6 {[%clk 0:02:59.1]} 6. d4 {[%clk 0:02:56.2]} 6... g6 {[%clk 0:02:59.5]}
7. b3 {[%clk 0:02:55.8]} 7... Bg7 {[%clk 0:02:58.2]} 8. Bb2 {[%clk 0:02:56.1]}
8... O-O {[%clk 0:02:58.8]} 9. h3 {[%clk 0:02:55.6]} 9... Nc6 {[%clk 0:02:58]}
10. Na3 {[%clk 0:02:52]} 10... Bf5 {[%clk 0:02:52.4]} 11. Bd3 {[%clk 0:02:51.9]}
11... Qd7 {[%clk 0:02:46.7]} 12. Qc2 {[%clk 0:02:46.8]} 12... Nb4 {[%clk
0:02:44.8]} 13. Bxf5 {[%clk 0:02:43.9]} 13... Nxc2+ {[%clk 0:02:44.7]} 14. Bxc2
{[%clk 0:02:44.8]} 14... d5 {[%clk 0:02:29]} 15. c5 {[%clk 0:02:42.4]} 15... Nc8
{[%clk 0:02:29.6]} 16. Bd3 {[%clk 0:02:36.5]} 16... e6 {[%clk 0:02:28.9]} 17.
O-O {[%clk 0:02:35.1]} 17... Ne7 {[%clk 0:02:28.9]} 18. Nc2 {[%clk 0:02:33]}
18... Nc6 {[%clk 0:02:11.6]} 19. b4 {[%clk 0:02:30.8]} 19... a6 {[%clk
0:02:10.7]} 20. a4 {[%clk 0:02:30.7]} 20... Rfd8 {[%clk 0:02:02]} 21. b5 {[%clk
0:02:30.4]} 21... axb5 {[%clk 0:02:02.2]} 22. axb5 {[%clk 0:02:31.3]} 22... Na5
{[%clk 0:02:00.6]} 23. Bc3 {[%clk 0:02:19.9]} 23... Nc4 {[%clk 0:02:00.6]} 24.
Bxc4 {[%clk 0:02:03.6]} 24... dxc4 {[%clk 0:02:00]} 25. b6 {[%clk 0:01:57.6]}
25... Qb5 {[%clk 0:01:50.5]} 26. Rab1 {[%clk 0:01:53.8]} 26... Qd7 {[%clk
0:01:33.9]} 27. Ne3 {[%clk 0:01:50.8]} 27... Ra4 {[%clk 0:01:31]} 28. Rfd1
{[%clk 0:01:33.6]} 28... Qc8 {[%clk 0:01:24.6]} 29. Rbc1 {[%clk 0:01:20.1]}
29... Bh6 {[%clk 0:01:23.6]} 30. Rc2 {[%clk 0:01:11]} 30... Qa8 {[%clk
0:01:20.8]} 31. Ng4 {[%clk 0:01:08.1]} 31... Bg7 {[%clk 0:01:20.5]} 32. Ne3
{[%clk 0:01:02.6]} 32... Ra2 {[%clk 0:01:17.3]} 33. Rcc1 {[%clk 0:00:46.2]}
33... Qa4 {[%clk 0:01:13.6]} 34. Ng4 {[%clk 0:00:41.1]} 34... Rc2 {[%clk
0:01:09.6]} 35. Ne3 {[%clk 0:00:35.7]} 35... Ra2 {[%clk 0:01:06.7]} 36. Ng4
{[%clk 0:00:34.7]} 36... Rc2 {[%clk 0:01:00.8]} 37. Ne3 {[%clk 0:00:34.3]} 37...
Rxc1 {[%clk 0:01:01.1]} 38. Rxc1 {[%clk 0:00:35.2]} 38... Bh6 {[%clk 0:01:01.4]}
39. Rd1 {[%clk 0:00:28.9]} 39... Bxe3 {[%clk 0:00:59.9]} 40. fxe3 {[%clk
0:00:29.8]} 40... Qxd1+ {[%clk 0:01:00.1]} 0-1

[Event "Early-Titled-Tuesday-Blitz-January-16-2024"]
[Site "Chess.com"]
[Date "2024.01.16"]
[Round "4"]
[White "Matols"]
[Black "sucof4reve"]
[Result "1-0"]
[WhiteElo "2379"]
[BlackElo "2002"]
[TimeControl "180+1"]
[EndTime "8:40:35 PST"]
[Termination "Matols won by resignation"]

1. d4 {[%clk 0:03:00.9]} 1... Nf6 {[%clk 0:02:58.7]} 2. c4 {[%clk 0:03:01.3]}
2... c5 {[%clk 0:02:58.7]} 3. d5 {[%clk 0:03:01]} 3... e6 {[%clk 0:02:58.2]} 4.
Nc3 {[%clk 0:03:00.4]} 4... exd5 {[%clk 0:02:59.1]} 5. cxd5 {[%clk 0:03:00.9]}
5... d6 {[%clk 0:02:58.8]} 6. e4 {[%clk 0:03:01.3]} 6... g6 {[%clk 0:02:59]} 7.
h3 {[%clk 0:03:01.9]} 7... Bg7 {[%clk 0:02:58.5]} 8. Nf3 {[%clk 0:03:02.4]} 8...
O-O {[%clk 0:02:58.3]} 9. Bd3 {[%clk 0:03:02.9]} 9... Re8 {[%clk 0:02:58.7]} 10.
O-O {[%clk 0:03:01.4]} 10... Nbd7 {[%clk 0:02:58.4]} 11. Bf4 {[%clk 0:02:57.7]}
11... Qe7 {[%clk 0:02:38.3]} 12. Re1 {[%clk 0:02:56.6]} 12... Nh5 {[%clk
0:02:35.3]} 13. Bh2 {[%clk 0:02:51.8]} 13... a6 {[%clk 0:02:35.5]} 14. a4 {[%clk
0:02:50.6]} 14... Ne5 {[%clk 0:02:27]} 15. Be2 {[%clk 0:02:50.9]} 15... Nxf3+
{[%clk 0:01:47.9]} 16. Bxf3 {[%clk 0:02:51.8]} 16... Nf6 {[%clk 0:01:48.4]} 17.
e5 {[%clk 0:02:50]} 17... dxe5 {[%clk 0:01:44.2]} 18. Rxe5 {[%clk 0:02:45.4]}
18... Qf8 {[%clk 0:01:42.9]} 19. d6 {[%clk 0:02:39]} 19... Nd7 {[%clk
0:01:38.2]} 20. Rxe8 {[%clk 0:02:34.5]} 20... Qxe8 {[%clk 0:01:37.9]} 21. Nd5
{[%clk 0:02:33.1]} 21... Rb8 {[%clk 0:01:30]} 22. Ne7+ {[%clk 0:02:27.7]} 22...
Kh8 {[%clk 0:01:29.2]} 23. Qc2 {[%clk 0:02:14.5]} 23... b5 {[%clk 0:01:20.7]}
24. axb5 {[%clk 0:02:13.3]} 24... axb5 {[%clk 0:01:21.6]} 25. Ra7 {[%clk
0:02:05.1]} 25... Be5 {[%clk 0:01:11]} 26. Bc6 {[%clk 0:01:43.9]} 26... Bxh2+
{[%clk 0:01:08.6]} 27. Kxh2 {[%clk 0:01:44.8]} 27... h5 {[%clk 0:00:39.2]} 28.
Nxc8 {[%clk 0:01:32.9]} 28... Rxc8 {[%clk 0:00:37.2]} 29. Bxd7 {[%clk
0:01:32.7]} 29... Qe5+ {[%clk 0:00:36.6]} 30. g3 {[%clk 0:01:32.8]} 30... Rd8
{[%clk 0:00:34.1]} 31. Bxb5 {[%clk 0:01:32.4]} 31... Rxd6 {[%clk 0:00:33.5]} 32.
Rxf7 {[%clk 0:01:30.4]} 32... Rf6 {[%clk 0:00:19.4]} 33. Rxf6 {[%clk 0:01:29]}
33... Qxf6 {[%clk 0:00:20.3]} 34. Qc3 {[%clk 0:01:29]} 34... Kg7 {[%clk
0:00:19.7]} 35. Kg2 {[%clk 0:01:26.6]} 35... Kf7 {[%clk 0:00:18.3]} 36. Qxf6+
{[%clk 0:01:25.2]} 36... Kxf6 {[%clk 0:00:19.2]} 37. Kf3 {[%clk 0:01:25.4]}
37... Ke5 {[%clk 0:00:19.5]} 38. Ke3 {[%clk 0:01:25.3]} 38... Kd5 {[%clk
0:00:19.7]} 39. b3 {[%clk 0:01:24.5]} 39... g5 {[%clk 0:00:19.8]} 40. h4 {[%clk
0:01:20]} 40... gxh4 {[%clk 0:00:19]} 41. gxh4 {[%clk 0:01:20.9]} 41... Ke5
{[%clk 0:00:19.4]} 42. f4+ {[%clk 0:01:20.2]} 42... Kf5 {[%clk 0:00:19.6]} 43.
Kf3 {[%clk 0:01:20.8]} 43... Kf6 {[%clk 0:00:17.7]} 44. Ke4 {[%clk 0:01:21.2]}
44... Ke6 {[%clk 0:00:17.3]} 45. f5+ {[%clk 0:01:21.2]} 45... Kf6 {[%clk
0:00:17.4]} 46. Kf4 {[%clk 0:01:21.4]} 1-0

[Event "Early-Titled-Tuesday-Blitz-January-16-2024"]
[Site "Chess.com"]
[Date "2024.01.16"]
[Round "4"]
[White "hawes33"]
[Black "MidnightFox"]
[Result "0-1"]
[WhiteElo "2270"]
[BlackElo "2503"]
[TimeControl "180+1"]
[EndTime "8:40:36 PST"]
[Termination "MidnightFox won by resignation"]

1. e4 {[%clk 0:03:00.9]} 1... c5 {[%clk 0:02:58.1]} 2. Nc3 {[%clk 0:03:00.1]}
2... e6 {[%clk 0:02:53]} 3. g3 {[%clk 0:02:58.7]} 3... Nc6 {[%clk 0:02:53.4]} 4.
Bg2 {[%clk 0:02:49.5]} 4... Nf6 {[%clk 0:02:53.9]} 5. d3 {[%clk 0:02:47.7]} 5...
Be7 {[%clk 0:02:53.1]} 6. f4 {[%clk 0:02:42.8]} 6... d5 {[%clk 0:02:52.8]} 7.
Nge2 {[%clk 0:02:32.5]} 7... b6 {[%clk 0:02:44.5]} 8. O-O {[%clk 0:02:27.6]}
8... Bb7 {[%clk 0:02:44]} 9. e5 {[%clk 0:02:24.9]} 9... Nd7 {[%clk 0:02:43.7]}
10. b3 {[%clk 0:02:18.9]} 10... a6 {[%clk 0:02:40.6]} 11. Bb2 {[%clk 0:02:18.6]}
11... Qc7 {[%clk 0:02:40.5]} 12. Qe1 {[%clk 0:02:17.8]} 12... O-O-O {[%clk
0:02:37.6]} 13. a4 {[%clk 0:02:16.5]} 13... Rdf8 {[%clk 0:02:35]} 14. a5 {[%clk
0:02:12.3]} 14... Nxa5 {[%clk 0:02:32.4]} 15. Na4 {[%clk 0:02:06]} 15... Nc6
{[%clk 0:02:29.5]} 16. c3 {[%clk 0:02:02.6]} 16... g5 {[%clk 0:02:28]} 17. d4
{[%clk 0:01:57.2]} 17... gxf4 {[%clk 0:02:24.3]} 18. Nxf4 {[%clk 0:01:56.7]}
18... h5 {[%clk 0:02:23]} 19. Ba3 {[%clk 0:01:52.3]} 19... h4 {[%clk 0:02:13.2]}
20. Bxd5 {[%clk 0:01:36.6]} 20... hxg3 {[%clk 0:02:01]} 21. hxg3 {[%clk
0:01:34]} 21... exd5 {[%clk 0:01:59.9]} 22. Nxd5 {[%clk 0:01:32.4]} 22... Qd8
{[%clk 0:01:58.7]} 23. dxc5 {[%clk 0:01:31.9]} 23... Bxc5+ {[%clk 0:01:53]} 24.
Bxc5 {[%clk 0:01:30.3]} 24... bxc5 {[%clk 0:01:44.4]} 25. Rd1 {[%clk 0:01:30]}
25... Ncxe5 {[%clk 0:01:39]} 26. Ndb6+ {[%clk 0:01:25.6]} 26... Kb8 {[%clk
0:01:35.6]} 27. Nxd7+ {[%clk 0:00:59.7]} 27... Nxd7 {[%clk 0:01:31.8]} 28. Nxc5
{[%clk 0:00:51.4]} 28... Rh1+ {[%clk 0:01:19.7]} 29. Kf2 {[%clk 0:00:50.6]}
29... Rh2+ {[%clk 0:01:19.9]} 30. Ke3 {[%clk 0:00:42.4]} 30... Qe7+ {[%clk
0:01:15.6]} 31. Kd3 {[%clk 0:00:37.8]} 31... Nxc5+ {[%clk 0:01:06.5]} 32. Kc4
{[%clk 0:00:36.9]} 32... Re2 {[%clk 0:01:02.2]} 33. Qxe2 {[%clk 0:00:30.5]}
33... Qxe2+ {[%clk 0:00:57]} 34. Kxc5 {[%clk 0:00:30.7]} 34... Qb5+ {[%clk
0:00:50.6]} 35. Kd4 {[%clk 0:00:29.6]} 35... Rd8+ {[%clk 0:00:50.6]} 36. Ke3
{[%clk 0:00:29.4]} 36... Qe5+ {[%clk 0:00:49.1]} 37. Kf2 {[%clk 0:00:28.1]}
37... Rxd1 {[%clk 0:00:46]} 0-1

[Event "Early-Titled-Tuesday-Blitz-January-16-2024"]
[Site "Chess.com"]
[Date "2024.01.16"]
[Round "4"]
[White "Marcin"]
[Black "Chempiblinka"]
[Result "1-0"]
[WhiteElo "2499"]
[BlackElo "2265"]
[TimeControl "180+1"]
[EndTime "8:40:37 PST"]
[Termination "Marcin won on time"]

1. d4 {[%clk 0:03:00.3]} 1... Nf6 {[%clk 0:02:57]} 2. c4 {[%clk 0:03:00.3]} 2...
g6 {[%clk 0:02:57.7]} 3. Nc3 {[%clk 0:03:00.2]} 3... Bg7 {[%clk 0:02:58.3]} 4.
e4 {[%clk 0:03:00.3]} 4... d6 {[%clk 0:02:58.9]} 5. Nf3 {[%clk 0:03:00.6]} 5...
O-O {[%clk 0:02:59.3]} 6. Be2 {[%clk 0:03:01.3]} 6... Bg4 {[%clk 0:02:59.4]} 7.
Be3 {[%clk 0:02:56.7]} 7... c5 {[%clk 0:02:43.2]} 8. dxc5 {[%clk 0:02:51.1]}
8... dxc5 {[%clk 0:02:42.8]} 9. Qxd8 {[%clk 0:02:50.8]} 9... Rxd8 {[%clk
0:02:43.7]} 10. Bxc5 {[%clk 0:02:50.6]} 10... Nc6 {[%clk 0:02:43.4]} 11. O-O
{[%clk 0:02:43.8]} 11... b6 {[%clk 0:02:36.6]} 12. Be3 {[%clk 0:02:42.6]} 12...
Rac8 {[%clk 0:02:34.7]} 13. Rad1 {[%clk 0:02:39.7]} 13... Nd7 {[%clk 0:02:31.3]}
14. Rc1 {[%clk 0:02:04.7]} 14... Bxf3 {[%clk 0:02:00.9]} 15. gxf3 {[%clk
0:02:04.5]} 15... Nce5 {[%clk 0:02:00.3]} 16. Nd5 {[%clk 0:01:58.7]} 16... Kf8
{[%clk 0:01:57]} 17. f4 {[%clk 0:01:57.7]} 17... Nc6 {[%clk 0:01:48.4]} 18. e5
{[%clk 0:01:54.9]} 18... e6 {[%clk 0:01:44.6]} 19. Nc3 {[%clk 0:01:53.2]} 19...
f5 {[%clk 0:01:30.6]} 20. Nb5 {[%clk 0:01:39.5]} 20... Kg8 {[%clk 0:00:56.1]}
21. Nd6 {[%clk 0:01:36.3]} 21... Rb8 {[%clk 0:00:54.3]} 22. Bf3 {[%clk
0:01:31.9]} 22... Nb4 {[%clk 0:00:44]} 23. a3 {[%clk 0:01:31.7]} 23... Na6
{[%clk 0:00:43.5]} 24. b4 {[%clk 0:01:31.1]} 24... Bf8 {[%clk 0:00:42.4]} 25. c5
{[%clk 0:01:21.9]} 25... bxc5 {[%clk 0:00:37]} 26. bxc5 {[%clk 0:01:22.8]} 26...
Nc7 {[%clk 0:00:19.3]} 27. Rfd1 {[%clk 0:01:09.9]} 27... g5 {[%clk 0:00:18.7]}
28. c6 {[%clk 0:01:08.9]} 28... gxf4 {[%clk 0:00:13]} 29. cxd7 {[%clk
0:01:08.4]} 29... fxe3 {[%clk 0:00:10.1]} 30. Rxc7 {[%clk 0:01:08.5]} 30...
exf2+ {[%clk 0:00:09.4]} 31. Kxf2 {[%clk 0:01:07]} 31... Rb2+ {[%clk 0:00:08.8]}
32. Kg1 {[%clk 0:01:02.7]} 32... Bh6 {[%clk 0:00:08.4]} 33. Rc8 {[%clk
0:01:01.9]} 33... Be3+ {[%clk 0:00:07.5]} 34. Kh1 {[%clk 0:01:02.3]} 34... Rb8
{[%clk 0:00:03.5]} 35. Rxb8 {[%clk 0:01:01.9]} 35... Rxb8 {[%clk 0:00:04.4]} 36.
Nc8 {[%clk 0:01:02.3]} 36... Bb6 {[%clk 0:00:01.5]} 37. Nxb6 {[%clk 0:01:01.3]}
1-0

[Event "Early-Titled-Tuesday-Blitz-January-16-2024"]
[Site "Chess.com"]
[Date "2024.01.16"]
[Round "4"]
[White "DrVitman"]
[Black "nickmatta"]
[Result "1-0"]
[WhiteElo "2786"]
[BlackElo "2576"]
[TimeControl "180+1"]
[EndTime "8:40:42 PST"]
[Termination "DrVitman won by resignation"]

1. e4 {[%clk 0:03:00.9]} 1... c5 {[%clk 0:02:58.5]} 2. Nc3 {[%clk 0:03:00.2]}
2... e6 {[%clk 0:02:51.7]} 3. Nge2 {[%clk 0:02:57.8]} 3... Nc6 {[%clk
0:02:50.9]} 4. g3 {[%clk 0:02:57.5]} 4... d5 {[%clk 0:02:48.3]} 5. exd5 {[%clk
0:02:58.4]} 5... exd5 {[%clk 0:02:49.2]} 6. d4 {[%clk 0:02:55.2]} 6... Nf6
{[%clk 0:02:49]} 7. Bg2 {[%clk 0:02:54.5]} 7... cxd4 {[%clk 0:02:47.8]} 8. Nxd4
{[%clk 0:02:53.9]} 8... Bc5 {[%clk 0:02:48.7]} 9. Be3 {[%clk 0:02:44.4]} 9...
Qb6 {[%clk 0:02:45]} 10. Na4 {[%clk 0:02:42.6]} 10... Qa5+ {[%clk 0:02:43.2]}
11. c3 {[%clk 0:02:37]} 11... Bg4 {[%clk 0:02:36.1]} 12. f3 {[%clk 0:02:24.3]}
12... Bd7 {[%clk 0:02:16.3]} 13. Nxc5 {[%clk 0:02:18.2]} 13... Qxc5 {[%clk
0:02:17.2]} 14. Kf2 {[%clk 0:02:05.6]} 14... Qd6 {[%clk 0:02:10.6]} 15. Nxc6
{[%clk 0:01:39.4]} 15... bxc6 {[%clk 0:02:10.3]} 16. b4 {[%clk 0:01:38.8]} 16...
Be6 {[%clk 0:01:48.8]} 17. Re1 {[%clk 0:01:34.2]} 17... Nd7 {[%clk 0:00:49.4]}
18. Bf4 {[%clk 0:01:31]} 18... Qe7 {[%clk 0:00:48.2]} 19. Qa4 {[%clk 0:01:28.6]}
19... O-O {[%clk 0:00:45.3]} 20. Bf1 {[%clk 0:01:01]} 20... Qf6 {[%clk
0:00:43.6]} 21. Rac1 {[%clk 0:00:57.3]} 21... g5 {[%clk 0:00:40.2]} 22. Bd6
{[%clk 0:00:51.5]} 22... Bg4 {[%clk 0:00:30.9]} 23. Bxf8 {[%clk 0:00:51]} 23...
Qxf3+ {[%clk 0:00:30.8]} 24. Kg1 {[%clk 0:00:51.4]} 24... Rxf8 {[%clk
0:00:23.4]} 25. Qxc6 {[%clk 0:00:50.3]} 25... Ne5 {[%clk 0:00:23]} 26. Rxe5
{[%clk 0:00:39.4]} 26... Bf5 {[%clk 0:00:19.6]} 27. Bg2 {[%clk 0:00:32.3]} 27...
Qg4 {[%clk 0:00:16.5]} 28. Qxd5 {[%clk 0:00:28.5]} 28... Be6 {[%clk 0:00:16.9]}
29. Rxg5+ {[%clk 0:00:28.1]} 29... Kh8 {[%clk 0:00:17]} 30. Rxg4 {[%clk
0:00:24.4]} 1-0

[Event "Early-Titled-Tuesday-Blitz-January-16-2024"]
[Site "Chess.com"]
[Date "2024.01.16"]
[Round "4"]
[White "Pastore1978"]
[Black "tusplingher"]
[Result "1-0"]
[WhiteElo "2285"]
[BlackElo "2484"]
[TimeControl "180+1"]
[EndTime "8:40:42 PST"]
[Termination "Pastore1978 won by checkmate"]

1. e4 {[%clk 0:03:00.9]} 1... c5 {[%clk 0:02:59.2]} 2. Nc3 {[%clk 0:03:00.5]}
2... Nc6 {[%clk 0:02:55.8]} 3. Bb5 {[%clk 0:03:00.5]} 3... g6 {[%clk 0:02:50.9]}
4. Bxc6 {[%clk 0:02:55.6]} 4... dxc6 {[%clk 0:02:47.2]} 5. d3 {[%clk 0:02:55.9]}
5... Bg7 {[%clk 0:02:47.4]} 6. f4 {[%clk 0:02:56.2]} 6... e5 {[%clk 0:02:38.4]}
7. Nf3 {[%clk 0:02:54.9]} 7... exf4 {[%clk 0:02:35.1]} 8. Bxf4 {[%clk
0:02:55.8]} 8... Nf6 {[%clk 0:02:19.8]} 9. O-O {[%clk 0:02:55.5]} 9... Nd7
{[%clk 0:02:14.7]} 10. e5 {[%clk 0:02:39.5]} 10... O-O {[%clk 0:01:40.2]} 11.
Qe2 {[%clk 0:02:39.4]} 11... Re8 {[%clk 0:01:37.3]} 12. Rae1 {[%clk 0:02:37.3]}
12... Nf8 {[%clk 0:01:36]} 13. Ne4 {[%clk 0:02:35.9]} 13... Bg4 {[%clk
0:01:27.8]} 14. h3 {[%clk 0:02:25.1]} 14... Bxf3 {[%clk 0:01:24.4]} 15. Qxf3
{[%clk 0:02:26]} 15... Ne6 {[%clk 0:01:21.5]} 16. Bg3 {[%clk 0:02:08.2]} 16...
Rf8 {[%clk 0:01:14.2]} 17. Nf6+ {[%clk 0:02:06.7]} 17... Kh8 {[%clk 0:01:10.9]}
18. Kh2 {[%clk 0:01:58.1]} 18... Qd4 {[%clk 0:00:59.7]} 19. c3 {[%clk
0:01:50.8]} 19... Qd8 {[%clk 0:00:55.6]} 20. Bh4 {[%clk 0:01:42.8]} 20... Qc7
{[%clk 0:00:52.6]} 21. Re4 {[%clk 0:01:37]} 21... Rad8 {[%clk 0:00:49.7]} 22.
Bg3 {[%clk 0:01:35.3]} 22... Ng5 {[%clk 0:00:35.9]} 23. Qg4 {[%clk 0:01:24.6]}
23... Nxe4 {[%clk 0:00:34.7]} 24. Qxe4 {[%clk 0:01:21.6]} 24... Qe7 {[%clk
0:00:31.6]} 25. Qh4 {[%clk 0:01:18.5]} 25... h5 {[%clk 0:00:23.8]} 26. Rf5
{[%clk 0:01:11.2]} 26... Bxf6 {[%clk 0:00:21.1]} 27. exf6 {[%clk 0:01:00.1]}
27... Qe2 {[%clk 0:00:19.7]} 28. Qg5 {[%clk 0:00:42.8]} 28... Kh7 {[%clk
0:00:18.3]} 29. Bf4 {[%clk 0:00:43]} 29... Rh8 {[%clk 0:00:04.6]} 30. Qh6+
{[%clk 0:00:42.8]} 30... Kg8 {[%clk 0:00:03.7]} 31. Qg7# {[%clk 0:00:43.7]} 1-0

[Event "Early-Titled-Tuesday-Blitz-January-16-2024"]
[Site "Chess.com"]
[Date "2024.01.16"]
[Round "4"]
[White "TrahtarBelarus"]
[Black "iwanyu"]
[Result "1-0"]
[WhiteElo "2894"]
[BlackElo "2672"]
[TimeControl "180+1"]
[EndTime "8:40:43 PST"]
[Termination "TrahtarBelarus won by resignation"]

1. a3 {[%clk 0:03:00.9]} 1... Nf6 {[%clk 0:02:54.3]} 2. Nf3 {[%clk 0:02:59]}
2... g6 {[%clk 0:02:54.4]} 3. g3 {[%clk 0:02:59]} 3... Bg7 {[%clk 0:02:55]} 4.
Bg2 {[%clk 0:02:59.6]} 4... O-O {[%clk 0:02:55.7]} 5. O-O {[%clk 0:03:00.2]}
5... d5 {[%clk 0:02:56.1]} 6. d4 {[%clk 0:03:00.7]} 6... a5 {[%clk 0:02:45.1]}
7. Bf4 {[%clk 0:02:45]} 7... c5 {[%clk 0:02:35.3]} 8. dxc5 {[%clk 0:02:07.4]}
8... Nc6 {[%clk 0:02:32.1]} 9. Nc3 {[%clk 0:02:05.6]} 9... d4 {[%clk 0:02:24.6]}
10. Nb5 {[%clk 0:01:51.5]} 10... Nd5 {[%clk 0:02:12.4]} 11. c3 {[%clk 0:01:34]}
11... dxc3 {[%clk 0:02:05.6]} 12. Nxc3 {[%clk 0:01:34]} 12... Nxf4 {[%clk
0:01:59.5]} 13. gxf4 {[%clk 0:01:33.6]} 13... Qc7 {[%clk 0:01:56.4]} 14. e3
{[%clk 0:01:32.8]} 14... Be6 {[%clk 0:01:53.9]} 15. Qa4 {[%clk 0:01:27.8]} 15...
Rad8 {[%clk 0:01:44.1]} 16. Rac1 {[%clk 0:01:07.7]} 16... Bg4 {[%clk 0:01:32.4]}
17. b4 {[%clk 0:01:04.2]} 17... axb4 {[%clk 0:01:31.2]} 18. axb4 {[%clk
0:01:05.1]} 18... e5 {[%clk 0:01:29.8]} 19. b5 {[%clk 0:00:54]} 19... Bxf3
{[%clk 0:01:26.5]} 20. Bxf3 {[%clk 0:00:51.8]} 20... Ne7 {[%clk 0:01:23]} 21.
Ne2 {[%clk 0:00:33.2]} 21... Nf5 {[%clk 0:01:08.1]} 22. b6 {[%clk 0:00:32.4]}
22... Qe7 {[%clk 0:01:06.3]} 23. fxe5 {[%clk 0:00:32.9]} 23... Bxe5 {[%clk
0:00:58.4]} 24. Ng3 {[%clk 0:00:32.9]} 24... Nh4 {[%clk 0:00:49.3]} 25. Bh1
{[%clk 0:00:31]} 25... Rd2 {[%clk 0:00:47.5]} 26. Rc2 {[%clk 0:00:29.6]} 26...
Rfd8 {[%clk 0:00:46.4]} 27. Rxd2 {[%clk 0:00:27.5]} 27... Rxd2 {[%clk
0:00:47.3]} 28. c6 {[%clk 0:00:20.2]} 28... bxc6 {[%clk 0:00:45.4]} 29. Qxc6
{[%clk 0:00:21.1]} 29... Rb2 {[%clk 0:00:40.5]} 30. b7 {[%clk 0:00:21.3]} 30...
Kg7 {[%clk 0:00:39.9]} 31. Qe4 {[%clk 0:00:20.2]} 31... Qf6 {[%clk 0:00:34.3]}
32. Qg4 {[%clk 0:00:17.7]} 32... Bb8 {[%clk 0:00:32.1]} 33. Nh5+ {[%clk
0:00:17.8]} 1-0

[Event "Early-Titled-Tuesday-Blitz-January-16-2024"]
[Site "Chess.com"]
[Date "2024.01.16"]
[Round "4"]
[White "doctorcristian"]
[Black "Nikolakis2014"]
[Result "0-1"]
[WhiteElo "2557"]
[BlackElo "2745"]
[TimeControl "180+1"]
[EndTime "8:40:47 PST"]
[Termination "Nikolakis2014 won by resignation"]

1. d4 {[%clk 0:03:00.9]} 1... Nf6 {[%clk 0:02:59]} 2. Nc3 {[%clk 0:03:00.8]}
2... d5 {[%clk 0:02:58.3]} 3. Bf4 {[%clk 0:03:01]} 3... c5 {[%clk 0:02:56.7]} 4.
e3 {[%clk 0:03:01.2]} 4... cxd4 {[%clk 0:02:56.9]} 5. exd4 {[%clk 0:03:01.5]}
5... a6 {[%clk 0:02:57.3]} 6. h3 {[%clk 0:03:01.2]} 6... Nc6 {[%clk 0:02:55.5]}
7. Nf3 {[%clk 0:03:01.4]} 7... g6 {[%clk 0:02:54.5]} 8. Ne5 {[%clk 0:03:00.2]}
8... Bd7 {[%clk 0:02:53.7]} 9. Nxc6 {[%clk 0:03:00.3]} 9... Bxc6 {[%clk
0:02:53.5]} 10. Be5 {[%clk 0:03:00.6]} 10... Bg7 {[%clk 0:02:53.7]} 11. Bd3
{[%clk 0:02:58.5]} 11... O-O {[%clk 0:02:53.3]} 12. Ne2 {[%clk 0:02:58.7]} 12...
Qb6 {[%clk 0:02:52]} 13. Qc1 {[%clk 0:02:54.2]} 13... Bb5 {[%clk 0:02:48.2]} 14.
Bxb5 {[%clk 0:02:52.9]} 14... Qxb5 {[%clk 0:02:48.3]} 15. c3 {[%clk 0:02:49.1]}
15... Rac8 {[%clk 0:02:46.8]} 16. Qc2 {[%clk 0:02:44.2]} 16... Nd7 {[%clk
0:02:40.8]} 17. Bxg7 {[%clk 0:02:43.3]} 17... Kxg7 {[%clk 0:02:40.7]} 18. O-O
{[%clk 0:02:42.4]} 18... Nf6 {[%clk 0:02:40.7]} 19. Rfe1 {[%clk 0:02:41.8]}
19... e6 {[%clk 0:02:35.8]} 20. Nf4 {[%clk 0:02:40]} 20... Qb6 {[%clk
0:02:33.9]} 21. Nd3 {[%clk 0:02:32.5]} 21... Qxd4 {[%clk 0:02:27.9]} 22. Rad1
{[%clk 0:02:21.9]} 22... Qb6 {[%clk 0:02:24.7]} 23. Ne5 {[%clk 0:02:15.9]} 23...
Rfd8 {[%clk 0:02:20.6]} 24. Qb1 {[%clk 0:02:13.3]} 24... d4 {[%clk 0:02:18.4]}
25. cxd4 {[%clk 0:02:08.1]} 25... Rxd4 {[%clk 0:02:16.9]} 26. Nf3 {[%clk
0:02:08.5]} 26... Rxd1 {[%clk 0:02:13.8]} 27. Rxd1 {[%clk 0:02:09.4]} 27... Qc6
{[%clk 0:02:11]} 28. Qd3 {[%clk 0:02:04.7]} 28... Qc2 {[%clk 0:02:02.5]} 29. Qd4
{[%clk 0:02:02.6]} 29... Rc4 {[%clk 0:02:02.5]} 30. Qd8 {[%clk 0:02:00.2]} 30...
Qxb2 {[%clk 0:01:55.6]} 31. Ng5 {[%clk 0:01:50.5]} 31... Rc1 {[%clk 0:01:46.2]}
32. h4 {[%clk 0:01:43.4]} 32... Rxd1+ {[%clk 0:01:37.7]} 33. Qxd1 {[%clk
0:01:43.2]} 33... h6 {[%clk 0:01:37]} 34. Nf3 {[%clk 0:01:41.2]} 34... Qxa2
{[%clk 0:01:24.5]} 35. Qd4 {[%clk 0:01:41.2]} 35... Qb1+ {[%clk 0:01:22.2]} 36.
Kh2 {[%clk 0:01:40.7]} 36... Qe4 {[%clk 0:01:22.2]} 37. Qb2 {[%clk 0:01:40]}
37... e5 {[%clk 0:01:16.2]} 38. Kg1 {[%clk 0:01:38.3]} 38... Nd7 {[%clk
0:01:09]} 39. Qd2 {[%clk 0:01:36.6]} 39... Qc6 {[%clk 0:01:08.1]} 40. h5 {[%clk
0:01:32.3]} 40... g5 {[%clk 0:00:44.9]} 41. Nxg5 {[%clk 0:00:59.1]} 41... hxg5
{[%clk 0:00:44.2]} 42. Qxg5+ {[%clk 0:01:00]} 42... Kh7 {[%clk 0:00:32.7]} 43.
Qf5+ {[%clk 0:00:55.9]} 43... Kh6 {[%clk 0:00:30]} 44. Qxf7 {[%clk 0:00:52]}
44... Qc1+ {[%clk 0:00:29]} 45. Kh2 {[%clk 0:00:52.1]} 45... Qf4+ {[%clk
0:00:29.6]} 0-1